[Event "Titled Tuesday Blitz November 22 Late 2022"]
[White "Haszon, David"]
[Black "Fernandez De La Vara, Arnaldo"]
[WhiteFideId "733610"]
[BlackFideId "3518388"]
[WhiteElo "2211"]
[BlackElo "2387"]
[Result "0-1"]
[Round "04"]
[TimeControl "180+1"]
[Date "2022.11.23"]
[WhiteClock "0:00:50"]
[BlackClock "0:00:10"]

1. e4 {[%clk 0:03:00]}  c5 {[%clk 0:03:00]} 2. c3 {[%clk 0:03:01]}  d5 {[%clk 0:02:59]} 3. exd5 {[%clk 0:03:00]}  Qxd5 {[%clk 0:02:59]} 4. d4 {[%clk 0:03:01]}  Nc6 {[%clk 0:02:59]} 5. Nf3 {[%clk 0:03:01]}  Nf6 {[%clk 0:02:59]} 6. Be2 {[%clk 0:02:59]}  Bg4 {[%clk 0:02:53]} 7. h3 {[%clk 0:02:56]}  Bh5 {[%clk 0:02:46]} 8. c4 {[%clk 0:02:48]}  Qd6 {[%clk 0:02:37]} 9. d5 {[%clk 0:02:42]}  Bxf3 {[%clk 0:02:23]} 10. Bxf3 {[%clk 0:02:43]}  Nd4 {[%clk 0:02:20]} 11. Be3 {[%clk 0:02:35]}  Nf5 {[%clk 0:01:43]} 12. O-O {[%clk 0:02:29]}  Nxe3 {[%clk 0:01:40]} 13. fxe3 {[%clk 0:02:29]}  g6 {[%clk 0:01:19]} 14. Nc3 {[%clk 0:02:28]}  Bg7 {[%clk 0:00:57]} 15. Qb3 {[%clk 0:02:27]}  O-O {[%clk 0:00:45]} 16. Rae1 {[%clk 0:02:26]}  Nd7 {[%clk 0:00:35]} 17. Re2 {[%clk 0:02:21]}  Rab8 {[%clk 0:00:31]} 18. Nb5 {[%clk 0:02:11]}  Qb6 {[%clk 0:00:27]} 19. Qa3 {[%clk 0:02:01]}  a6 {[%clk 0:00:27]} 20. Nc3 {[%clk 0:02:01]}  Ne5 {[%clk 0:00:25]} 21. Na4 {[%clk 0:01:54]}  Qa5 {[%clk 0:00:25]} 22. Nxc5 {[%clk 0:01:41]}  Qxa3 {[%clk 0:00:26]} 23. bxa3 {[%clk 0:01:41]}  Rfc8 {[%clk 0:00:27]} 24. Nb3 {[%clk 0:01:28]}  Rxc4 {[%clk 0:00:27]} 25. Rd1 {[%clk 0:01:24]}  b5 {[%clk 0:00:18]} 26. d6 {[%clk 0:01:23]}  Rd8 {[%clk 0:00:15]} 27. Red2 {[%clk 0:01:19]}  Nxf3+ {[%clk 0:00:13]} 28. gxf3 {[%clk 0:01:18]}  Rxd6 {[%clk 0:00:13]} 29. Rxd6 {[%clk 0:01:19]}  exd6 {[%clk 0:00:13]} 30. Rxd6 {[%clk 0:01:20]}  Ra4 {[%clk 0:00:12]} 31. Nc5 {[%clk 0:01:14]}  Rxa3 {[%clk 0:00:09]} 32. Rd8+ {[%clk 0:01:14]}  Bf8 {[%clk 0:00:09]} 33. Nd7 {[%clk 0:01:15]}  Kg7 {[%clk 0:00:05]} 34. Nxf8 {[%clk 0:01:11]}  Rxa2 {[%clk 0:00:05]} 35. Rb8 {[%clk 0:01:05]}  b4 {[%clk 0:00:04]} 36. Nd7 {[%clk 0:01:05]}  a5 {[%clk 0:00:05]} 37. Nc5 {[%clk 0:01:04]}  Rc2 {[%clk 0:00:05]} 38. Ne4 {[%clk 0:00:57]}  Re2 {[%clk 0:00:04]} 39. Rb5 {[%clk 0:00:54]}  Rxe3 {[%clk 0:00:04]} 40. Kf2 {[%clk 0:00:55]}  Ra3 {[%clk 0:00:04]} 41. Nd6 {[%clk 0:00:54]}  b3 {[%clk 0:00:03]} 42. Nc4 {[%clk 0:00:52]}  Ra2+ {[%clk 0:00:04]} 43. Kg3 {[%clk 0:00:51]}  a4 {[%clk 0:00:05]} 44. Kf4 {[%clk 0:00:50]}  Rc2 {[%clk 0:00:05]} 45. Rb4 {[%clk 0:00:47]}  Rxc4+ {[%clk 0:00:03]} 46. Rxc4 {[%clk 0:00:46]}  b2 {[%clk 0:00:04]} 47. Rb4 {[%clk 0:00:46]}  a3 {[%clk 0:00:04]} 48. Rb3 {[%clk 0:00:44]}  a2 {[%clk 0:00:05]} 49. Rxb2 {[%clk 0:00:44]}  a1=Q {[%clk 0:00:06]} 50. Re2 {[%clk 0:00:45]}  Qc1+ {[%clk 0:00:06]} 51. Kg3 {[%clk 0:00:44]}  Qc7+ {[%clk 0:00:06]} 52. Kf2 {[%clk 0:00:44]}  Qc8 {[%clk 0:00:07]} 53. Kg2 {[%clk 0:00:45]}  Qf8 {[%clk 0:00:08]} 54. Rf2 {[%clk 0:00:46]}  Qg8 {[%clk 0:00:09]} 55. Re2 {[%clk 0:00:46]}  Qf8 {[%clk 0:00:09]} 56. Re4 {[%clk 0:00:47]}  Qd6 {[%clk 0:00:10]} 57. Re2 {[%clk 0:00:48]}  Qf4 {[%clk 0:00:10]} 58. Rf2 {[%clk 0:00:49]}  Qe3 {[%clk 0:00:10]} 59. Re2 {[%clk 0:00:50]}  Qxe2+ {[%clk 0:00:10]} 0-1


[Site "https://www.chess.com"]

[Event "Titled Tuesday Blitz November 22 Late 2022"]
[White "Jarmula, Lukasz"]
[Black "Gutkin, Ilya"]
[WhiteFideId "1160664"]
[BlackFideId "16203470"]
[WhiteElo "2357"]
[BlackElo "2265"]
[Result "1-0"]
[Round "04"]
[TimeControl "180+1"]
[Date "2022.11.23"]
[WhiteClock "0:01:08"]
[BlackClock "0:00:03"]

1. e4 {[%clk 0:03:00]}  e6 {[%clk 0:03:00]} 2. d4 {[%clk 0:03:00]}  d5 {[%clk 0:03:00]} 3. Nd2 {[%clk 0:03:01]}  c5 {[%clk 0:03:00]} 4. Ngf3 {[%clk 0:03:00]}  a6 {[%clk 0:02:59]} 5. exd5 {[%clk 0:02:53]}  exd5 {[%clk 0:03:00]} 6. Bd3 {[%clk 0:02:53]}  Nf6 {[%clk 0:02:57]} 7. O-O {[%clk 0:02:53]}  Be7 {[%clk 0:02:57]} 8. Re1 {[%clk 0:02:52]}  O-O {[%clk 0:02:56]} 9. dxc5 {[%clk 0:02:52]}  Bxc5 {[%clk 0:02:57]} 10. Nb3 {[%clk 0:02:53]}  Bb6 {[%clk 0:02:57]} 11. Be3 {[%clk 0:02:52]}  Nc6 {[%clk 0:02:46]} 12. Bxb6 {[%clk 0:02:50]}  Qxb6 {[%clk 0:02:47]} 13. h3 {[%clk 0:02:49]}  h6 {[%clk 0:02:35]} 14. c3 {[%clk 0:02:48]}  Be6 {[%clk 0:02:20]} 15. Qd2 {[%clk 0:02:47]}  Rfe8 {[%clk 0:02:15]} 16. Nbd4 {[%clk 0:02:47]}  Rad8 {[%clk 0:02:09]} 17. Re2 {[%clk 0:02:45]}  Bd7 {[%clk 0:02:04]} 18. Rae1 {[%clk 0:02:43]}  Qc7 {[%clk 0:01:32]} 19. Re3 {[%clk 0:02:09]}  Qd6 {[%clk 0:01:22]} 20. R1e2 {[%clk 0:02:08]}  Kf8 {[%clk 0:01:07]} 21. Qe1 {[%clk 0:02:07]}  Nh5 {[%clk 0:00:57]} 22. Nxc6 {[%clk 0:01:57]}  bxc6 {[%clk 0:00:54]} 23. Ne5 {[%clk 0:01:54]}  a5 {[%clk 0:00:34]} 24. Nxd7+ {[%clk 0:01:38]}  Qxd7 {[%clk 0:00:35]} 25. Bf5 {[%clk 0:01:37]}  Re6 {[%clk 0:00:07]} 26. Bxe6 {[%clk 0:01:35]}  fxe6 {[%clk 0:00:08]} 27. Rf3+ {[%clk 0:01:35]}  Nf6 {[%clk 0:00:07]} 28. Rxe6 {[%clk 0:01:35]}  Kg8 {[%clk 0:00:07]} 29. Re7 {[%clk 0:01:33]}  Qd6 {[%clk 0:00:07]} 30. Qe6+ {[%clk 0:01:32]}  Qxe6 {[%clk 0:00:04]} 31. Rxe6 {[%clk 0:01:33]}  Rc8 {[%clk 0:00:04]} 32. Rfe3 {[%clk 0:01:19]}  Kf7 {[%clk 0:00:04]} 33. Re7+ {[%clk 0:01:19]}  Kg6 {[%clk 0:00:03]} 34. Rg3+ {[%clk 0:01:18]}  Kf5 {[%clk 0:00:03]} 35. Rgxg7 {[%clk 0:01:18]}  Ne4 {[%clk 0:00:03]} 36. g4+ {[%clk 0:01:14]}  Kf4 {[%clk 0:00:03]} 37. Rgf7+ {[%clk 0:01:14]}  Kg5 {[%clk 0:00:03]} 38. Rf5+ {[%clk 0:01:13]}  Kg6 {[%clk 0:00:02]} 39. Re6+ {[%clk 0:01:12]}  Kg7 {[%clk 0:00:03]} 40. Re7+ {[%clk 0:01:10]}  Kg6 {[%clk 0:00:03]} 41. h4 {[%clk 0:01:08]}  Rb8 {[%clk 0:00:03]} 42. h5# {[%clk 0:01:08]} 1-0


[Site "https://www.chess.com"]

[Event "Titled Tuesday Blitz November 22 Late 2022"]
[White "Khandelwal, Ankush"]
[Black "Kravtsiv, Martyn"]
[WhiteFideId "413470"]
[BlackFideId "14113147"]
[WhiteElo "2271"]
[BlackElo "2694"]
[Result "0-1"]
[Round "04"]
[TimeControl "180+1"]
[Date "2022.11.22"]
[WhiteClock "0:01:35"]
[BlackClock "0:02:08"]

1. e4 {[%clk 0:03:00]}  e5 {[%clk 0:02:59]} 2. Nf3 {[%clk 0:03:00]}  Nc6 {[%clk 0:02:59]} 3. d4 {[%clk 0:03:00]}  exd4 {[%clk 0:02:59]} 4. Nxd4 {[%clk 0:03:01]}  Nf6 {[%clk 0:02:58]} 5. Nxc6 {[%clk 0:03:01]}  bxc6 {[%clk 0:02:59]} 6. e5 {[%clk 0:03:01]}  Qe7 {[%clk 0:02:58]} 7. Qe2 {[%clk 0:03:02]}  Nd5 {[%clk 0:02:59]} 8. g3 {[%clk 0:03:02]}  g6 {[%clk 0:02:52]} 9. c4 {[%clk 0:03:02]}  Ba6 {[%clk 0:02:47]} 10. b3 {[%clk 0:03:02]}  Bg7 {[%clk 0:02:47]} 11. Bb2 {[%clk 0:03:03]}  O-O {[%clk 0:02:42]} 12. Bg2 {[%clk 0:03:03]}  Rfe8 {[%clk 0:02:40]} 13. O-O {[%clk 0:03:02]}  Bxe5 {[%clk 0:02:40]} 14. Qxe5 {[%clk 0:03:02]}  Qxe5 {[%clk 0:02:40]} 15. Bxe5 {[%clk 0:03:02]}  Rxe5 {[%clk 0:02:40]} 16. cxd5 {[%clk 0:03:02]}  Bxf1 {[%clk 0:02:40]} 17. Kxf1 {[%clk 0:03:03]}  cxd5 {[%clk 0:02:40]} 18. f4 {[%clk 0:02:44]}  Re3 {[%clk 0:02:39]} 19. Bxd5 {[%clk 0:02:42]}  Rae8 {[%clk 0:02:31]} 20. Nd2 {[%clk 0:02:30]}  Rd3 {[%clk 0:02:30]} 21. Ne4 {[%clk 0:02:30]}  Kg7 {[%clk 0:02:27]} 22. Bc4 {[%clk 0:02:22]}  Rd4 {[%clk 0:02:25]} 23. Nc3 {[%clk 0:02:14]}  Rd2 {[%clk 0:02:13]} 24. Be2 {[%clk 0:01:35]}  Rc2 {[%clk 0:02:08]} 0-1


[Site "https://www.chess.com"]

[Event "Titled Tuesday Blitz November 22 Late 2022"]
[White "Klenburg, Michael"]
[Black "Svicevic, Rastko"]
[WhiteFideId "14102072"]
[BlackFideId "916315"]
[WhiteElo "2405"]
[BlackElo "2077"]
[Result "1-0"]
[Round "04"]
[TimeControl "180+1"]
[Date "2022.11.23"]
[WhiteClock "0:00:06"]
[BlackClock "0:00:01"]

1. e4 {[%clk 0:02:58]}  c6 {[%clk 0:02:57]} 2. d3 {[%clk 0:02:57]}  d5 {[%clk 0:02:58]} 3. Nd2 {[%clk 0:02:56]}  g6 {[%clk 0:02:57]} 4. Ngf3 {[%clk 0:02:55]}  Bg7 {[%clk 0:02:57]} 5. g3 {[%clk 0:02:46]}  dxe4 {[%clk 0:02:57]} 6. dxe4 {[%clk 0:02:46]}  Nf6 {[%clk 0:02:56]} 7. Bg2 {[%clk 0:02:46]}  O-O {[%clk 0:02:57]} 8. O-O {[%clk 0:02:45]}  Bg4 {[%clk 0:02:57]} 9. h3 {[%clk 0:02:45]}  Bxf3 {[%clk 0:02:57]} 10. Qxf3 {[%clk 0:02:44]}  Nbd7 {[%clk 0:02:57]} 11. Qe2 {[%clk 0:02:44]}  e5 {[%clk 0:02:54]} 12. b3 {[%clk 0:02:42]}  Qe7 {[%clk 0:02:53]} 13. a4 {[%clk 0:02:41]}  Rfd8 {[%clk 0:02:54]} 14. Ba3 {[%clk 0:02:37]}  Qe8 {[%clk 0:02:54]} 15. Nc4 {[%clk 0:02:37]}  Nf8 {[%clk 0:02:54]} 16. Nd6 {[%clk 0:02:32]}  Qd7 {[%clk 0:02:50]} 17. Rfd1 {[%clk 0:02:27]}  Qc7 {[%clk 0:02:50]} 18. Nc4 {[%clk 0:02:10]}  Ne8 {[%clk 0:02:35]} 19. Rxd8 {[%clk 0:01:47]}  Rxd8 {[%clk 0:02:33]} 20. Rd1 {[%clk 0:01:47]}  Ne6 {[%clk 0:02:32]} 21. c3 {[%clk 0:01:43]}  b5 {[%clk 0:02:19]} 22. axb5 {[%clk 0:01:34]}  Rxd1+ {[%clk 0:02:08]} 23. Qxd1 {[%clk 0:01:30]}  cxb5 {[%clk 0:02:08]} 24. Ne3 {[%clk 0:01:26]}  Qxc3 {[%clk 0:02:06]} 25. Nd5 {[%clk 0:01:25]}  Qd4 {[%clk 0:02:02]} 26. Qc2 {[%clk 0:01:20]}  h5 {[%clk 0:01:52]} 27. Qc8 {[%clk 0:01:03]}  Qa1+ {[%clk 0:01:51]} 28. Kh2 {[%clk 0:01:02]}  Qxa3 {[%clk 0:01:47]} 29. Qxe8+ {[%clk 0:01:02]}  Bf8 {[%clk 0:01:06]} 30. Qxb5 {[%clk 0:01:00]}  Kg7 {[%clk 0:00:35]} 31. Qb8 {[%clk 0:00:37]}  Bd6 {[%clk 0:00:32]} 32. Qb5 {[%clk 0:00:31]}  Nd4 {[%clk 0:00:29]} 33. Qd7 {[%clk 0:00:30]}  Nxb3 {[%clk 0:00:24]} 34. Nc7 {[%clk 0:00:23]}  Bxc7 {[%clk 0:00:12]} 35. Qxc7 {[%clk 0:00:23]}  Qc5 {[%clk 0:00:11]} 36. Qb7 {[%clk 0:00:23]}  Nd4 {[%clk 0:00:10]} 37. Bf1 {[%clk 0:00:23]}  Ne6 {[%clk 0:00:06]} 38. Kg2 {[%clk 0:00:20]}  a5 {[%clk 0:00:06]} 39. Qb3 {[%clk 0:00:18]}  Nd4 {[%clk 0:00:05]} 40. Qa4 {[%clk 0:00:17]}  Qb4 {[%clk 0:00:04]} 41. Qe8 {[%clk 0:00:15]}  Qc5 {[%clk 0:00:04]} 42. Qa4 {[%clk 0:00:14]}  Qc6 {[%clk 0:00:04]} 43. Qa2 {[%clk 0:00:12]}  Qxe4+ {[%clk 0:00:04]} 44. Kg1 {[%clk 0:00:12]}  Qc6 {[%clk 0:00:03]} 45. Bc4 {[%clk 0:00:11]}  Qc7 {[%clk 0:00:03]} 46. Bd5 {[%clk 0:00:10]}  Qd7 {[%clk 0:00:02]} 47. Kg2 {[%clk 0:00:10]}  a4 {[%clk 0:00:02]} 48. Bc4 {[%clk 0:00:09]}  Qb7+ {[%clk 0:00:02]} 49. Bd5 {[%clk 0:00:09]}  Qc7 {[%clk 0:00:01]} 50. Bc4 {[%clk 0:00:09]}  Qc6+ {[%clk 0:00:01]} 51. Bd5 {[%clk 0:00:09]}  Qb5 {[%clk 0:00:01]} 52. Bc4 {[%clk 0:00:09]}  Qb4 {[%clk 0:00:02]} 53. Bxf7 {[%clk 0:00:09]}  a3 {[%clk 0:00:01]} 54. Bg8 {[%clk 0:00:09]}  Qb7+ {[%clk 0:00:01]} 55. Bd5 {[%clk 0:00:09]}  Qb2 {[%clk 0:00:02]} 56. Qc4 {[%clk 0:00:08]}  a2 {[%clk 0:00:02]} 57. Qc7+ {[%clk 0:00:08]}  Kf6 {[%clk 0:00:02]} 58. Qd6+ {[%clk 0:00:07]}  Kg5 {[%clk 0:00:02]} 59. Qe7+ {[%clk 0:00:06]}  Kh6 {[%clk 0:00:02]} 60. Qf8+ {[%clk 0:00:06]}  Kh7 {[%clk 0:00:01]} 61. Bg8+ {[%clk 0:00:06]}  Kh8 {[%clk 0:00:01]} 62. Bf7+ {[%clk 0:00:06]} 1-0


[Site "https://www.chess.com"]

[Event "Titled Tuesday Blitz November 22 Late 2022"]
[White "Korchmar, Vasiliy"]
[Black "Ansh M Shah"]
[WhiteFideId "24131750"]
[BlackFideId "25033379"]
[WhiteElo "2370"]
[BlackElo "2084"]
[Result "1-0"]
[Round "04"]
[TimeControl "180+1"]
[Date "2022.11.23"]
[WhiteClock "0:00:15"]
[BlackClock "0:00:06"]

1. e4 {[%clk 0:02:57]}  c6 {[%clk 0:02:59]} 2. d4 {[%clk 0:02:56]}  d5 {[%clk 0:03:00]} 3. e5 {[%clk 0:02:57]}  Bf5 {[%clk 0:03:00]} 4. c4 {[%clk 0:02:58]}  e6 {[%clk 0:03:00]} 5. Nc3 {[%clk 0:02:58]}  Ne7 {[%clk 0:03:00]} 6. a3 {[%clk 0:02:58]}  Nd7 {[%clk 0:03:00]} 7. cxd5 {[%clk 0:02:57]}  Nxd5 {[%clk 0:03:00]} 8. Nge2 {[%clk 0:02:55]}  Be7 {[%clk 0:02:58]} 9. Ng3 {[%clk 0:02:56]}  Bg6 {[%clk 0:02:58]} 10. Bc4 {[%clk 0:02:55]}  N7b6 {[%clk 0:02:55]} 11. Ba2 {[%clk 0:02:55]}  Qd7 {[%clk 0:02:44]} 12. O-O {[%clk 0:02:55]}  h5 {[%clk 0:02:44]} 13. Nge4 {[%clk 0:02:54]}  O-O-O {[%clk 0:02:38]} 14. Qe2 {[%clk 0:02:53]}  h4 {[%clk 0:02:37]} 15. h3 {[%clk 0:02:53]}  f5 {[%clk 0:02:34]} 16. Nc5 {[%clk 0:02:52]}  Bxc5 {[%clk 0:02:34]} 17. dxc5 {[%clk 0:02:53]}  Nxc3 {[%clk 0:02:30]} 18. bxc3 {[%clk 0:02:54]}  Nd5 {[%clk 0:02:30]} 19. Bg5 {[%clk 0:02:47]}  Rde8 {[%clk 0:02:27]} 20. Rfd1 {[%clk 0:02:36]}  Nxc3 {[%clk 0:02:21]} 21. Qc2 {[%clk 0:02:27]}  Nxd1 {[%clk 0:02:20]} 22. Rxd1 {[%clk 0:02:28]}  Qc7 {[%clk 0:02:12]} 23. Rd6 {[%clk 0:02:28]}  Bf7 {[%clk 0:02:04]} 24. Qd2 {[%clk 0:02:20]}  a6 {[%clk 0:01:26]} 25. a4 {[%clk 0:02:20]}  Rh5 {[%clk 0:01:15]} 26. Bc4 {[%clk 0:02:12]}  g6 {[%clk 0:01:11]} 27. Bf6 {[%clk 0:02:07]}  Bg8 {[%clk 0:01:09]} 28. Qe2 {[%clk 0:01:44]}  Rh7 {[%clk 0:01:08]} 29. Bxa6 {[%clk 0:01:06]}  Qa5 {[%clk 0:01:01]} 30. Rxc6+ {[%clk 0:00:52]}  Kb8 {[%clk 0:00:54]} 31. Rb6 {[%clk 0:00:52]}  Qxc5 {[%clk 0:00:52]} 32. Qb2 {[%clk 0:00:47]}  Ka7 {[%clk 0:00:26]} 33. Rb5 {[%clk 0:00:33]}  Qc6 {[%clk 0:00:18]} 34. Qd4+ {[%clk 0:00:32]}  Kxa6 {[%clk 0:00:17]} 35. Bd8 {[%clk 0:00:15]}  b6 {[%clk 0:00:07]} 36. Rxb6+ {[%clk 0:00:14]}  Qxb6 {[%clk 0:00:06]} 37. Qxb6# {[%clk 0:00:15]} 1-0


[Site "https://www.chess.com"]

[Event "Titled Tuesday Blitz November 22 Late 2022"]
[White "Lobanov, Sergei"]
[Black "Paiva, Henrique M A Albergaria"]
[WhiteFideId "24183750"]
[BlackFideId "1920995"]
[WhiteElo "2510"]
[BlackElo "1953"]
[Result "0-1"]
[Round "04"]
[TimeControl "180+1"]
[Date "2022.11.22"]
[WhiteClock "0:00:01"]
[BlackClock "0:00:05"]

1. e4 {[%clk 0:03:00]}  c5 {[%clk 0:02:52]} 2. Nf3 {[%clk 0:02:59]}  d6 {[%clk 0:02:52]} 3. d4 {[%clk 0:03:00]}  cxd4 {[%clk 0:02:53]} 4. Nxd4 {[%clk 0:03:01]}  Nf6 {[%clk 0:02:53]} 5. Nc3 {[%clk 0:03:01]}  a6 {[%clk 0:02:54]} 6. Be3 {[%clk 0:02:59]}  e5 {[%clk 0:02:53]} 7. Nf3 {[%clk 0:02:59]}  Be7 {[%clk 0:02:50]} 8. Bc4 {[%clk 0:02:57]}  h6 {[%clk 0:02:44]} 9. O-O {[%clk 0:02:56]}  O-O {[%clk 0:02:43]} 10. h3 {[%clk 0:02:53]}  Be6 {[%clk 0:02:41]} 11. Bb3 {[%clk 0:02:53]}  Nbd7 {[%clk 0:02:34]} 12. Qe2 {[%clk 0:02:44]}  Qc7 {[%clk 0:02:33]} 13. Rfd1 {[%clk 0:02:44]}  b5 {[%clk 0:02:30]} 14. a3 {[%clk 0:02:41]}  Nb6 {[%clk 0:02:25]} 15. Bxe6 {[%clk 0:02:35]}  fxe6 {[%clk 0:02:24]} 16. a4 {[%clk 0:02:12]}  b4 {[%clk 0:02:24]} 17. a5 {[%clk 0:01:50]}  Nc4 {[%clk 0:02:23]} 18. Na2 {[%clk 0:01:50]}  Rab8 {[%clk 0:01:50]} 19. Bc1 {[%clk 0:01:41]}  Rfc8 {[%clk 0:01:42]} 20. Ne1 {[%clk 0:01:13]}  Nxa5 {[%clk 0:01:27]} 21. Qxa6 {[%clk 0:01:07]}  b3 {[%clk 0:01:15]} 22. Nc3 {[%clk 0:01:05]}  Ra8 {[%clk 0:01:14]} 23. Qe2 {[%clk 0:01:04]}  bxc2 {[%clk 0:01:14]} 24. Nxc2 {[%clk 0:01:05]}  Nb3 {[%clk 0:01:12]} 25. Rxa8 {[%clk 0:01:04]}  Rxa8 {[%clk 0:01:13]} 26. Be3 {[%clk 0:01:01]}  Nd7 {[%clk 0:00:56]} 27. Qg4 {[%clk 0:00:55]}  Nf8 {[%clk 0:00:51]} 28. Bxh6 {[%clk 0:00:54]}  Bf6 {[%clk 0:00:48]} 29. Be3 {[%clk 0:00:52]}  Rb8 {[%clk 0:00:42]} 30. h4 {[%clk 0:00:48]}  Nc5 {[%clk 0:00:36]} 31. Bc1 {[%clk 0:00:47]}  Nb3 {[%clk 0:00:36]} 32. Bg5 {[%clk 0:00:46]}  Bxg5 {[%clk 0:00:24]} 33. hxg5 {[%clk 0:00:45]}  Nd4 {[%clk 0:00:22]} 34. Nxd4 {[%clk 0:00:43]}  exd4 {[%clk 0:00:23]} 35. Rxd4 {[%clk 0:00:44]}  Rxb2 {[%clk 0:00:20]} 36. Rd3 {[%clk 0:00:44]}  Qc5 {[%clk 0:00:17]} 37. Rf3 {[%clk 0:00:44]}  Qe5 {[%clk 0:00:14]} 38. Qh5 {[%clk 0:00:35]}  g6 {[%clk 0:00:13]} 39. Qh6 {[%clk 0:00:30]}  Qg7 {[%clk 0:00:13]} 40. Qh3 {[%clk 0:00:29]}  Qe5 {[%clk 0:00:11]} 41. g3 {[%clk 0:00:28]}  Rc2 {[%clk 0:00:11]} 42. Rf6 {[%clk 0:00:14]}  Qxg5 {[%clk 0:00:08]} 43. Rxf8+ {[%clk 0:00:05]}  Kxf8 {[%clk 0:00:08]} 44. Qh8+ {[%clk 0:00:05]}  Kf7 {[%clk 0:00:09]} 45. Qh7+ {[%clk 0:00:06]}  Ke8 {[%clk 0:00:09]} 46. Qg8+ {[%clk 0:00:05]}  Kd7 {[%clk 0:00:09]} 47. Qf7+ {[%clk 0:00:03]}  Qe7 {[%clk 0:00:09]} 48. Qf3 {[%clk 0:00:03]}  Qg7 {[%clk 0:00:08]} 49. Ne2 {[%clk 0:00:04]}  Qa1+ {[%clk 0:00:08]} 50. Kg2 {[%clk 0:00:04]}  Qb2 {[%clk 0:00:09]} 51. Qf7+ {[%clk 0:00:03]}  Kc6 {[%clk 0:00:09]} 52. Qxe6 {[%clk 0:00:02]}  Rxe2 {[%clk 0:00:08]} 53. Qd5+ {[%clk 0:00:02]}  Kc7 {[%clk 0:00:08]} 54. Qf7+ {[%clk 0:00:02]}  Kb6 {[%clk 0:00:08]} 55. Qf8 {[%clk 0:00:02]}  Kc5 {[%clk 0:00:07]} 56. Qc8+ {[%clk 0:00:01]}  Kd4 {[%clk 0:00:07]} 57. Qh8+ {[%clk 0:00:01]}  Kxe4 {[%clk 0:00:06]} 58. Qe8+ {[%clk 0:00:02]}  Kd3 {[%clk 0:00:06]} 59. Qxg6+ {[%clk 0:00:01]}  Kd2 {[%clk 0:00:06]} 60. Qxd6+ {[%clk 0:00:01]}  Ke1 {[%clk 0:00:06]} 61. Qf4 {[%clk 0:00:01]}  Rxf2+ {[%clk 0:00:05]} 0-1


[Site "https://www.chess.com"]

[Event "Titled Tuesday Blitz November 22 Late 2022"]
[White "Mesa Cruz, Juan Carlos"]
[Black "Winterberg, Lukas"]
[WhiteFideId "6423400"]
[BlackFideId "24622702"]
[WhiteElo "2059"]
[BlackElo "2349"]
[Result "0-1"]
[Round "04"]
[TimeControl "180+1"]
[Date "2022.11.23"]
[WhiteClock "0:00:47"]
[BlackClock "0:02:08"]

1. e4 {[%clk 0:02:56]}  Nf6 {[%clk 0:02:58]} 2. e5 {[%clk 0:02:55]}  Nd5 {[%clk 0:02:59]} 3. d4 {[%clk 0:02:56]}  Nb6 {[%clk 0:02:59]} 4. c4 {[%clk 0:02:50]}  d6 {[%clk 0:03:00]} 5. f4 {[%clk 0:02:37]}  g6 {[%clk 0:02:57]} 6. Nc3 {[%clk 0:02:32]}  Bg7 {[%clk 0:02:56]} 7. Be3 {[%clk 0:02:30]}  O-O {[%clk 0:02:56]} 8. Be2 {[%clk 0:02:29]}  dxe5 {[%clk 0:02:53]} 9. dxe5 {[%clk 0:02:24]}  Be6 {[%clk 0:02:50]} 10. b3 {[%clk 0:02:16]}  Nc6 {[%clk 0:02:41]} 11. Bf3 {[%clk 0:02:13]}  f6 {[%clk 0:02:39]} 12. exf6 {[%clk 0:02:09]}  Bxf6 {[%clk 0:02:38]} 13. Nge2 {[%clk 0:02:08]}  Bf5 {[%clk 0:02:26]} 14. O-O {[%clk 0:01:51]}  e5 {[%clk 0:02:25]} 15. Nd5 {[%clk 0:01:33]}  e4 {[%clk 0:02:13]} 16. Nxf6+ {[%clk 0:00:56]}  Qxf6 {[%clk 0:02:14]} 17. Bxb6 {[%clk 0:00:48]}  exf3 {[%clk 0:02:09]} 18. Bd4 {[%clk 0:00:47]}  fxe2 {[%clk 0:02:08]} 0-1


[Site "https://www.chess.com"]

[Event "Titled Tuesday Blitz November 22 Late 2022"]
[White "Mikhalsky, Vladimir"]
[Black "Liu, Kelsey"]
[WhiteFideId "14144352"]
[BlackFideId "30944481"]
[WhiteElo "2271"]
[BlackElo "2322"]
[Result "1-0"]
[Round "04"]
[TimeControl "180+1"]
[Date "2022.11.23"]
[WhiteClock "0:00:08"]
[BlackClock "0:00:03"]

1. d4 {[%clk 0:02:51]}  Nf6 {[%clk 0:02:59]} 2. c4 {[%clk 0:02:50]}  e6 {[%clk 0:02:59]} 3. g3 {[%clk 0:02:50]}  d5 {[%clk 0:02:55]} 4. Bg2 {[%clk 0:02:49]}  dxc4 {[%clk 0:02:55]} 5. Nf3 {[%clk 0:02:49]}  c6 {[%clk 0:02:29]} 6. a4 {[%clk 0:02:46]}  Bb4+ {[%clk 0:02:26]} 7. Bd2 {[%clk 0:02:44]}  a5 {[%clk 0:02:26]} 8. O-O {[%clk 0:02:43]}  O-O {[%clk 0:02:19]} 9. Na3 {[%clk 0:02:41]}  Bxa3 {[%clk 0:01:43]} 10. Rxa3 {[%clk 0:02:40]}  b5 {[%clk 0:01:39]} 11. Qc2 {[%clk 0:02:15]}  Bb7 {[%clk 0:01:20]} 12. Rd1 {[%clk 0:01:48]}  Nbd7 {[%clk 0:01:15]} 13. Ne5 {[%clk 0:01:34]}  Qc7 {[%clk 0:01:12]} 14. Bf4 {[%clk 0:01:25]}  Nxe5 {[%clk 0:01:10]} 15. Bxe5 {[%clk 0:01:23]}  Qe7 {[%clk 0:01:10]} 16. Bxf6 {[%clk 0:01:09]}  gxf6 {[%clk 0:01:11]} 17. g4 {[%clk 0:01:09]}  Rfc8 {[%clk 0:00:56]} 18. Rh3 {[%clk 0:01:07]}  Kf8 {[%clk 0:00:47]} 19. Qxh7 {[%clk 0:01:06]}  Ke8 {[%clk 0:00:47]} 20. axb5 {[%clk 0:00:58]}  cxb5 {[%clk 0:00:39]} 21. Bxb7 {[%clk 0:00:44]}  Qxb7 {[%clk 0:00:38]} 22. d5 {[%clk 0:00:43]}  e5 {[%clk 0:00:25]} 23. d6 {[%clk 0:00:31]}  Rd8 {[%clk 0:00:20]} 24. Qg8+ {[%clk 0:00:21]}  Kd7 {[%clk 0:00:20]} 25. Qxf7+ {[%clk 0:00:21]}  Kc6 {[%clk 0:00:21]} 26. d7 {[%clk 0:00:15]}  Kc7 {[%clk 0:00:12]} 27. Qxf6 {[%clk 0:00:14]}  Qe4 {[%clk 0:00:12]} 28. g5 {[%clk 0:00:10]}  Rxd7 {[%clk 0:00:08]} 29. Rxd7+ {[%clk 0:00:09]}  Kxd7 {[%clk 0:00:09]} 30. Qf7+ {[%clk 0:00:09]}  Kd6 {[%clk 0:00:07]} 31. Qf6+ {[%clk 0:00:08]}  Kc5 {[%clk 0:00:07]} 32. Qe7+ {[%clk 0:00:08]}  Kd4 {[%clk 0:00:07]} 33. Qd6+ {[%clk 0:00:08]}  Qd5 {[%clk 0:00:07]} 34. e3+ {[%clk 0:00:07]}  Ke4 {[%clk 0:00:04]} 35. f3+ {[%clk 0:00:08]}  Kxe3 {[%clk 0:00:03]} 36. Qxd5 {[%clk 0:00:08]} 1-0


[Site "https://www.chess.com"]